fUST/lending_fUST_20241021
["ID","MTS","AMOUNT","RATE_DAILY","PERIOD"]
[340601880,1729519844205,-569.11586781,0.00016438,2]
[340601882,1729519844214,-1720.78,0.00016438,2]
[340601884,1729519844224,-500.0,0.00016438,2]
[340601886,1729519844234,-500.0,0.00016438,2]
[340601888,1729519844243,-500.0,0.00016438,2]
[340601890,1729519844253,-500.0,0.00016438,2]
[340601892,1729519844262,-656.08,0.00016438,2]
[340601894,1729519844271,-1682.17,0.00016438,2]
[340601896,1729519844282,-1786.56,0.00016438,2]
[340601898,1729519844290,-500.0,0.00016438,2]
[340601900,1729519844301,-765.73,0.00016438,2]
[340601902,1729519844310,-500.0,0.00016438,2]
[340601904,1729519844320,-171.7932,0.00016438,2]
[340601906,1729519844330,-171.7932,0.00016438,2]
[340601908,1729519844339,-171.7932,0.00016438,2]
[340601910,1729519844349,-1911.64,0.00016438,2]
[340601912,1729519844359,-500.0,0.00016438,2]
[340601914,1729519844368,-500.0,0.00016438,2]
[340601916,1729519844378,-171.7932,0.00016438,2]
[340601918,1729519844387,-171.7932,0.00016438,2]
[340601920,1729519844396,-171.7932,0.00016438,2]
[340601922,1729519844407,-1585.09,0.00016438,2]
[340601924,1729519844417,-151.0,0.00016438,2]
[340601926,1729519844427,-2036.97,0.00016438,2]
[340601928,1729519844437,-151.0,0.00016438,2]
[340601930,1729519844447,-500.0,0.00016438,2]
[340601932,1729519844457,-151.0,0.00016438,2]
[340601934,1729519844467,-151.0,0.00016438,2]
[340601936,1729519844477,-1035.75,0.00016438,2]
[340601938,1729519844486,-878.97,0.00016438,2]
[340601940,1729519844497,-622.12159464,0.00016438,2]
[340601942,1729519844506,-890.17,0.00016438,2]
[340601944,1729519844516,-500.0,0.00016438,2]
[340601946,1729519844526,-500.0,0.00016438,2]
[340601948,1729519844535,-500.0,0.00016438,2]
[340601950,1729519844545,-500.0,0.00016438,2]
[340601952,1729519844554,-899.06,0.00016438,2]
[340601954,1729519844564,-500.0,0.00016438,2]
[340601956,1729519844574,-500.0,0.00016438,2]
[340601958,1729519844583,-500.0,0.00016438,2]
[340601960,1729519844593,-1009.96,0.00016438,2]
[340601962,1729519844603,-500.0,0.00016438,2]
[340601964,1729519844613,-569.28557805,0.00016438,2]
[340601966,1729519844623,-753.67,0.00016438,2]
[340601968,1729519844633,-151.0,0.00016438,2]
[340601970,1729519844642,-500.0,0.00016438,2]
[340601972,1729519844653,-500.0,0.00016438,2]
[340601974,1729519844663,-500.0,0.00016438,2]
[340601976,1729519844673,-505.84243887,0.00016438,2]
[340601978,1729519844683,-500.0,0.00016438,2]
[340601980,1729519844693,-1835.71,0.00016438,2]
[340601982,1729519844703,-500.0,0.00016438,2]
[340601984,1729519844713,-555.10114321,0.00016438,2]
[340601986,1729519844723,-500.0,0.00016438,2]
[340601988,1729519844732,-500.0,0.00016438,2]
[340601990,1729519844742,-2541.89,0.00016438,2]
[340601992,1729519844752,-2390.63,0.00016438,2]
[340601994,1729519844762,-500.0,0.00016438,2]
[340601995,1729519844772,-500.0,0.00016438,2]
[340601997,1729519844782,-500.0,0.00016438,2]
[340602000,1729519844793,-500.0,0.00016438,2]
[340602002,1729519844803,-849.77,0.00016438,2]
[340602004,1729519844812,-500.0,0.00016438,2]
[340602006,1729519844822,-500.0,0.00016438,2]
[340602008,1729519844832,-744.98,0.00016438,2]
[340602010,1729519844842,-624.83,0.00016438,2]
[340602012,1729519844852,-500.0,0.00016438,2]
[340602014,1729519844861,-1068.79,0.00016438,2]
[340602016,1729519844871,-2009.5,0.00016438,2]
[340602018,1729519844881,-500.0,0.00016438,2]
[340602020,1729519844891,-500.0,0.00016438,2]
[340602022,1729519844903,-500.0,0.00016438,2]
[340602024,1729519844912,-1004.32,0.00016438,2]
[340602026,1729519844921,-1564.5,0.00016438,2]
[340602028,1729519844932,-500.0,0.00016438,2]
[340602030,1729519844944,-500.0,0.00016438,2]
[340602032,1729519844953,-1000.0,0.00016438,2]
[340602034,1729519844963,-500.0,0.00016438,2]
[340602036,1729519844972,-1866.19,0.00016438,2]
[340602038,1729519844983,-1355.43,0.00016438,2]
[340602040,1729519844995,-500.0,0.00016438,2]
[340602042,1729519845005,-500.0,0.00016438,2]
[340602044,1729519845016,-746.41,0.00016438,2]
[340602046,1729519845027,-500.0,0.00016438,2]
[340602048,1729519845039,-394.47915083,0.00016438,2]
[340602050,1729519845049,-151.0,0.00016438,2]
[340602052,1729519845059,-500.0,0.00016438,2]
[340602054,1729519845069,-500.0,0.00016438,2]
[340602056,1729519845080,-682.22,0.00016438,2]
[340602058,1729519845091,-500.0,0.00016438,2]
[340602060,1729519845101,-1698.4,0.00016438,2]
[340602062,1729519845111,-500.0,0.00016438,2]
[340602064,1729519845122,-151.0,0.00016438,2]
[340602066,1729519845133,-151.0,0.00016438,2]
[340602068,1729519845143,-151.0,0.00016438,2]
[340602070,1729519845154,-151.0,0.00016438,2]
[340602072,1729519845164,-1588.76,0.00016438,2]
[340602073,1729519845174,-500.0,0.00016438,2]
[340602075,1729519845185,-606.23168963,0.00016438,2]
[340602077,1729519845195,-500.0,0.00016438,2]
[340602079,1729519845205,-500.0,0.00016438,2]
[340602081,1729519845214,-1809.2,0.00016438,2]
[340602082,1729519845224,-500.0,0.00016438,2]
[340602084,1729519845235,-500.0,0.00016438,2]
[340602086,1729519845245,-500.0,0.00016438,2]
[340602087,1729519845256,-500.0,0.00016438,2]
[340602088,1729519845266,-500.0,0.00016438,2]
[340602089,1729519845276,-500.0,0.00016438,2]
[340602090,1729519845286,-936.15,0.00016438,2]
[340602091,1729519845296,-222.317664,0.00016438,2]
[340602092,1729519845306,-151.0,0.00016438,2]
[340602093,1729519845316,-222.317664,0.00016438,2]
[340602094,1729519845326,-151.0,0.00016438,2]
[340602095,1729519845335,-222.317664,0.00016438,2]
[340602096,1729519845344,-500.0,0.00016438,2]
[340602098,1729519845355,-151.0,0.00016438,2]
[340602100,1729519845365,-222.317664,0.00016438,2]
[340602101,1729519845375,-500.0,0.00016438,2]
[340602102,1729519845384,-230.276516,0.00016438,2]
[340602103,1729519845394,-500.0,0.00016438,2]
[340602104,1729519845406,-151.0,0.00016438,2]
[340602105,1729519845416,-1195.34,0.00016438,2]
[340602106,1729519845426,-500.0,0.00016438,2]
[340602107,1729519845437,-530.38880297,0.00016438,2]
[340602108,1729519845446,-513.14,0.00016438,2]
[340602109,1729519845456,-500.0,0.00016438,2]
[340602110,1729519845467,-500.0,0.00016438,2]
[340602111,1729519845477,-1107.72,0.00016438,2]
[340602112,1729519845487,-903.74,0.00016438,2]
[340602113,1729519845497,-500.0,0.00016438,2]
[340602114,1729519845506,-500.0,0.00016438,2]
[340602115,1729519845517,-500.0,0.00016438,2]
[340602116,1729519845527,-328.00412845,0.00016438,2]
[340602117,1729519845537,-500.0,0.00016438,2]
[340602118,1729519845548,-717.12,0.00016438,2]
[340602119,1729519845559,-1933.05,0.00016438,2]
[340602121,1729519845568,-775.33,0.00016438,2]
[340602122,1729519845578,-1127.715394,0.00016438,2]
[340602124,1729519845588,-500.0,0.00016438,2]
[340602126,1729519845598,-1127.715394,0.00016438,2]
[340602128,1729519845608,-1127.715394,0.00016438,2]
[340602129,1729519845618,-1127.715394,0.00016438,2]
[340602130,1729519845627,-785.25,0.00016438,2]
[340602132,1729519845637,-1261.9,0.00016438,2]
[340602134,1729519845647,-210.469771,0.00016438,2]
[340602136,1729519845658,-1127.715394,0.00016438,2]
[340602139,1729519845668,-1127.715394,0.00016438,2]
[340602141,1729519845678,-1127.715394,0.00016438,2]
[340602143,1729519845688,-1127.715394,0.00016438,2]
[340602144,1729519845698,-500.0,0.00016438,2]
[340602145,1729519845708,-2047.58,0.00016438,2]
[340602146,1729519845717,-500.0,0.00016438,2]
[340602147,1729519845727,-2370.99,0.00016438,2]
[340602148,1729519845738,-3802.87,0.00016438,2]
[340602149,1729519845747,-533.16492035,0.00016438,2]
[340602150,1729519845757,-500.0,0.00016438,2]
[340602151,1729519845767,-401.96669128,0.00016438,2]
[340602152,1729519845777,-151.0,0.00016438,2]
[340602153,1729519845786,-500.0,0.00016438,2]
[340602154,1729519845796,-151.0,0.00016438,2]
[340602155,1729519845806,-1223.89,0.00016438,2]
[340602156,1729519845816,-500.0,0.00016438,2]
[340602157,1729519845826,-500.0,0.00016438,2]
[340602158,1729519845836,-500.0,0.00016438,2]
[340602159,1729519845846,-500.0,0.00016438,2]
[340602160,1729519845856,-500.0,0.00016438,2]
[340602161,1729519845865,-500.0,0.00016438,2]
[340602162,1729519845874,-5302.31,0.00016438,2]
[340602163,1729519845884,-500.0,0.00016438,2]
[340602164,1729519845894,-1929.43,0.00016438,2]
[340602165,1729519845905,-500.0,0.00016438,2]
[340602166,1729519845914,-500.0,0.00016438,2]
[340602167,1729519845924,-151.0,0.00016438,2]
[340602168,1729519845936,-500.0,0.00016438,2]
[340602169,1729519845946,-151.0,0.00016438,2]
[340602170,1729519845955,-151.0,0.00016438,2]
[340602171,1729519845965,-190.59775,0.00016438,2]
[340602172,1729519845975,-151.0,0.00016438,2]
[340602173,1729519845985,-286.306333,0.00016438,2]
[340602174,1729519845995,-647.58,0.00016438,2]
[340602175,1729519846005,-1618.9,0.00016438,2]
[340602176,1729519846016,-591.17,0.00016438,2]
[340602178,1729519846079,-542.05837688,0.00016438,2]
[340602179,1729519846089,-500.0,0.00016438,2]
[340602180,1729519846099,-1530.2,0.00016438,2]
[340602181,1729519846108,-1836.48,0.00016438,2]
[340602182,1729519846117,-500.0,0.00016438,2]
[340602183,1729519846126,-3254.43,0.00016438,2]
[340602184,1729519846136,-500.0,0.00016438,2]
[340602185,1729519846146,-151.0,0.00016438,2]
[340602186,1729519846157,-502.71,0.00016438,2]
[340602187,1729519846167,-151.0,0.00016438,2]
[340602188,1729519846176,-151.0,0.00016438,2]
[340602189,1729519846186,-151.0,0.00016438,2]
[340602190,1729519846195,-151.0,0.00016438,2]
[340602191,1729519846205,-151.0,0.00016438,2]
[340602192,1729519846215,-500.0,0.00016438,2]
[340602193,1729519846224,-500.0,0.00016438,2]
[340602194,1729519846233,-952.94,0.00016438,2]
[340602195,1729519846243,-151.0,0.00016438,2]
[340602196,1729519846253,-500.0,0.00016438,2]
[340602197,1729519846262,-151.0,0.00016438,2]
[340602198,1729519846271,-151.0,0.00016438,2]
[340602199,1729519846280,-1059.06,0.00016438,2]
[340602200,1729519846290,-283.999946,0.00016438,2]
[340602201,1729519846299,-2207.58,0.00016438,2]
[340602202,1729519846308,-500.0,0.00016438,2]
[340602203,1729519846318,-1423.02,0.00016438,2]
[340602204,1729519846328,-500.0,0.00016438,2]
[340602205,1729519846337,-1059.72,0.00016438,2]
[340602206,1729519846347,-500.0,0.00016438,2]
[340602207,1729519846356,-835.73,0.00016438,2]
[340602208,1729519846366,-1379.34,0.00016438,2]
[340602209,1729519846376,-1729.67,0.00016438,2]
[340602210,1729519846386,-500.0,0.00016438,2]
[340602211,1729519846395,-500.0,0.00016438,2]
[340602212,1729519846407,-500.0,0.00016438,2]
[340602213,1729519846417,-500.0,0.00016438,2]
[340602214,1729519846426,-500.0,0.00016438,2]
[340602215,1729519846436,-743.83,0.00016438,2]
[340602216,1729519846446,-238.775007,0.00016438,2]
[340602217,1729519846455,-238.775007,0.00016438,2]
[340602218,1729519846465,-238.775007,0.00016438,2]
[340602219,1729519846474,-238.775007,0.00016438,2]
[340602220,1729519846484,-4225.34,0.00016438,2]
[340602221,1729519846494,-705.69,0.00016438,2]
[340602222,1729519846503,-635.13,0.00016438,2]
[340602223,1729519846513,-238.775007,0.00016438,2]
[340602224,1729519846523,-238.775007,0.00016438,2]
[340602225,1729519846532,-238.775007,0.00016438,2]
[340602226,1729519846542,-238.775007,0.00016438,2]
[340602227,1729519846552,-151.0,0.00016438,2]
[340602228,1729519846562,-151.0,0.00016438,2]
[340602229,1729519846572,-151.0,0.00016438,2]
[340602230,1729519846582,-500.0,0.00016438,2]
[340602231,1729519846591,-151.0,0.00016438,2]
[340602232,1729519846601,-500.0,0.00016438,2]
[340602233,1729519846611,-1032.52,0.00016438,2]
[340602234,1729519846621,-500.0,0.00016438,2]
[340602235,1729519846630,-500.0,0.00016438,2]
[340602236,1729519846641,-500.0,0.00016438,2]
[340602237,1729519846651,-500.0,0.00016438,2]
[340602238,1729519846661,-547.46,0.00016438,2]
[340602239,1729519846670,-758.23,0.00016438,2]
[340602240,1729519846680,-2124.47,0.00016438,2]
[340602241,1729519846690,-1025.78,0.00016438,2]
[340602242,1729519846699,-943.98,0.00016438,2]
[340602243,1729519846709,-500.0,0.00016438,2]
[340602244,1729519846718,-1459.22,0.00016438,2]
[340602245,1729519846728,-151.0,0.00016438,2]
[340602246,1729519846738,-500.0,0.00016438,2]
[340602247,1729519846748,-1267.2,0.00016438,2]
[340602248,1729519846758,-678.41,0.00016438,2]
[340602249,1729519846767,-2912.56,0.00016438,2]
[340602250,1729519846776,-500.0,0.00016438,2]
[340602251,1729519846785,-892.76,0.00016438,2]
[340602252,1729519846795,-151.0,0.00016438,2]
[340602253,1729519846805,-151.0,0.00016438,2]
[340602254,1729519846814,-3478.0,0.00016438,2]
[340602255,1729519846823,-297.4186,0.00016438,2]
[340602256,1729519846834,-500.0,0.00016438,2]
[340602257,1729519846844,-1247.8,0.00016438,2]
[340602258,1729519846853,-861.61,0.00016438,2]
[340602259,1729519846863,-151.0,0.00016438,2]
[340602260,1729519846873,-151.0,0.00016438,2]
[340602261,1729519846883,-204.691199,0.00016438,2]
[340602262,1729519846892,-500.0,0.00016438,2]
[340602263,1729519846906,-184.37810308,0.00016438,2]
[340602264,1729519846915,-1109.79,0.00016438,2]
[340602265,1729519846925,-541.47,0.00016438,2]
[340602266,1729519846936,-151.0,0.00016438,2]
[340602267,1729519846946,-500.0,0.00016438,2]
[340602268,1729519846955,-151.0,0.00016438,2]
[340602269,1729519846964,-151.0,0.00016438,2]
[340602270,1729519846974,-151.0,0.00016438,2]
[340602271,1729519846983,-893.05,0.00016438,2]
[340602272,1729519846994,-1614.17,0.00016438,2]
[340602273,1729519847004,-1580.59,0.00016438,2]
[340602274,1729519847014,-541.92,0.00016438,2]
[340602275,1729519847023,-500.0,0.00016438,2]
[340602276,1729519847034,-500.0,0.00016438,2]
[340602277,1729519847044,-500.0,0.00016438,2]
[340602278,1729519847053,-1595.37,0.00016438,2]
[340602279,1729519847062,-151.0,0.00016438,2]
[340602280,1729519847072,-990.23,0.00016438,2]
[340602281,1729519847081,-1476.42,0.00016438,2]
[340602282,1729519847091,-151.0,0.00016438,2]
[340602283,1729519847100,-151.0,0.00016438,2]
[340602284,1729519847109,-2093.3,0.00016438,2]
[340602285,1729519847118,-151.0,0.00016438,2]
[340602286,1729519847128,-1518.81,0.00016438,2]
[340602287,1729519847137,-661.51,0.00016438,2]
[340602288,1729519847147,-151.0,0.00016438,2]
[340602289,1729519847163,-151.0,0.00016438,2]
[340602290,1729519847172,-151.0,0.00016438,2]
[340602291,1729519847182,-151.0,0.00016438,2]
[340602292,1729519847191,-595.64,0.00016438,2]
[340602293,1729519847201,-791.97,0.00016438,2]
[340602294,1729519847210,-151.0,0.00016438,2]
[340602295,1729519847219,-151.0,0.00016438,2]
[340602296,1729519847229,-500.0,0.00016438,2]
[340602297,1729519847238,-151.0,0.00016438,2]
[340602298,1729519847248,-151.0,0.00016438,2]
[340602299,1729519847257,-500.0,0.00016438,2]
[340602300,1729519847266,-500.0,0.00016438,2]
[340602301,1729519847276,-500.0,0.00016438,2]
[340602302,1729519847286,-500.0,0.00016438,2]
[340602303,1729519847295,-500.0,0.00016438,2]
[340602304,1729519847304,-1840.22,0.00016438,2]
[340602305,1729519847313,-500.0,0.00016438,2]
[340602306,1729519847323,-151.0,0.00016438,2]
[340602307,1729519847333,-151.0,0.00016438,2]
[340602308,1729519847342,-1968.82,0.00016438,2]
[340602309,1729519847351,-501.88228124,0.00016438,2]
[340602310,1729519847360,-500.0,0.00016438,2]
[340602311,1729519847370,-500.0,0.00016438,2]
[340602312,1729519847379,-1297.04,0.00016438,2]
[340602313,1729519847389,-151.0,0.00016438,2]
[340602314,1729519847400,-1110.57,0.00016438,2]
[340602315,1729519847409,-500.0,0.00016438,2]
[340602316,1729519847419,-1520.16,0.00016438,2]
[340602317,1729519847428,-501.32907887,0.00016438,2]
[340602318,1729519847437,-151.0,0.00016438,2]
[340602319,1729519847447,-500.0,0.00016438,2]
[340602320,1729519847457,-500.0,0.00016438,2]
[340602321,1729519847467,-960.5,0.00016438,2]
[340602322,1729519847476,-500.0,0.00016438,2]
[340602323,1729519847487,-500.0,0.00016438,2]
[340602324,1729519847496,-621.28,0.00016438,2]
[340602325,1729519847506,-866.92,0.00016438,2]
[340602326,1729519847515,-1708.01,0.00016438,2]
[340602327,1729519847524,-587.65423772,0.00016438,2]
[340602328,1729519847535,-3776.85,0.00016438,2]
[340602329,1729519847544,-500.0,0.00016438,2]
[340602330,1729519847554,-500.0,0.00016438,2]
[340602331,1729519847563,-500.0,0.00016438,2]
[340602332,1729519847572,-500.0,0.00016438,2]
[340602333,1729519847581,-1732.62,0.00016438,2]
[340602334,1729519847591,-1496.13,0.00016438,2]
[340602335,1729519847600,-2035.34,0.00016438,2]
[340602336,1729519847609,-1028.39,0.00016438,2]
[340602337,1729519847619,-531.75231897,0.00016438,2]
[340602338,1729519847628,-322.671937,0.00016438,2]
[340602339,1729519847637,-322.671937,0.00016438,2]
[340602340,1729519847647,-322.671937,0.00016438,2]
[340602341,1729519847659,-652.2,0.00016438,2]
[340602342,1729519847669,-151.0,0.00016438,2]
[340602343,1729519847678,-1595.77,0.00016438,2]
[340602344,1729519847688,-151.0,0.00016438,2]
[340602345,1729519847698,-151.0,0.00016438,2]
[340602346,1729519847707,-151.0,0.00016438,2]
[340602347,1729519847716,-1821.59,0.00016438,2]
[340602348,1729519847726,-500.0,0.00016438,2]
[340602349,1729519847735,-322.671937,0.00016438,2]
[340602350,1729519847744,-322.671937,0.00016438,2]
[340602351,1729519847753,-322.671937,0.00016438,2]
[340602352,1729519847762,-500.0,0.00016438,2]
[340602353,1729519847772,-500.0,0.00016438,2]
[340602354,1729519847781,-764.61,0.00016438,2]
[340602355,1729519847790,-4170.64,0.00016438,2]
[340602356,1729519847799,-500.0,0.00016438,2]
[340602357,1729519847809,-500.0,0.00016438,2]
[340602358,1729519847818,-720.12,0.00016438,2]
[340602359,1729519847828,-1915.43,0.00016438,2]
[340602360,1729519847837,-500.0,0.00016438,2]
[340602361,1729519847846,-567.57092612,0.00016438,2]
[340602362,1729519847855,-1544.62,0.00016438,2]
[340602363,1729519847865,-151.0,0.00016438,2]
[340602364,1729519847874,-151.0,0.00016438,2]
[340602365,1729519847883,-500.0,0.00016438,2]
[340602366,1729519847892,-151.0,0.00016438,2]
[340602367,1729519847903,-500.0,0.00016438,2]
[340602368,1729519847912,-764.86,0.00016438,2]
[340602369,1729519847921,-151.0,0.00016438,2]
[340602370,1729519847931,-151.0,0.00016438,2]
[340602371,1729519847944,-113.83199599,0.00016438,2]
[340602372,1729519848283,-37.16800401,0.00016438,2]
[340602373,1729519848293,-500.0,0.00016438,2]
[340602374,1729519848302,-1245.97,0.00016438,2]
[340602375,1729519848312,-1209.29541301,0.00016438,2]
[340602376,1729519848912,-105.84458699,0.00016438,2]
[340602377,1729519848922,-500.0,0.00016438,2]
[340602378,1729519848934,-500.0,0.00016438,2]
[340602379,1729519848945,-1634.05,0.00016438,2]
[340602380,1729519848955,-1906.7,0.00016438,2]
[340602381,1729519848965,-1156.41,0.00016438,2]
[340602382,1729519848975,-2874.14,0.00016438,2]
[340602383,1729519848986,-631.58,0.00016438,2]
[340602384,1729519848997,-500.0,0.00016438,2]
[340602385,1729519849007,-500.0,0.00016438,2]
[340602386,1729519849017,-687.56,0.00016438,2]
[340602387,1729519849027,-2487.44,0.00016438,2]
[340602388,1729519849038,-151.0,0.00016438,2]
[340602389,1729519849048,-885.54,0.00016438,2]
[340602390,1729519849058,-3190.05,0.00016438,2]
[340602391,1729519849068,-824.83,0.00016438,2]
[340602392,1729519849077,-151.0,0.00016438,2]
[340602393,1729519849087,-151.0,0.00016438,2]
[340602394,1729519849097,-1354.95541301,0.00016438,2]
[340602395,1729519849110,-626.78458699,0.00016438,2]
[340602396,1729519849120,-500.0,0.00016438,2]
[340602397,1729519849131,-81.38005287,0.00016438,2]
[340602398,1729519849143,-1525.53994713,0.00016438,2]
[340602399,1729519849155,-1345.35,0.00016438,2]
[340602400,1729519849165,-500.0,0.00016438,2]
[340602401,1729519849175,-850.77,0.00016438,2]
[340602402,1729519849185,-539.12342997,0.00016438,2]
[340602403,1729519849194,-1360.72,0.00016438,2]
[340602404,1729519849204,-616.1966229,0.00016438,2]
[340602406,1729520812184,-155.16,0.00010959,2]
[340602407,1729520812214,-14.13422994,0.00010959,2]
[340602408,1729520834087,-761.71577006,0.00010959,2]
[340602409,1729520834110,-59.89313505,0.00015426,2]
[340602413,1729520852090,-112.84507695,0.00015426,2]
[340602414,1729520852113,-953.86791699,0.00015865,2]
[340602486,1729521038965,-956.06146881,0.00015865,2]
[340602488,1729521038975,-300.0,0.00016198,2]
[340602489,1729521038985,-300.0,0.00016198,2]
[340602490,1729521038994,-8890.20115101,0.00016199,2]
[340602491,1729521039003,-172.738212,0.0001623,2]
[340602492,1729521039012,-1499.57332441,0.00016299,2]
[340602493,1729521039021,-523.31317335,0.000163,2]
[340602494,1729521039031,-1000.0,0.00016308,2]
[340602495,1729521039040,-1909.9293858,0.00016365,2]
[340602496,1729521039049,-500.0,0.00016373,2]
[340602497,1729521039061,-500.0,0.00016373,2]
[340602498,1729521039070,-161.57827742,0.00016397,2]
[340602499,1729521039080,-481.11069483,0.00016397,2]
[340602500,1729521039090,-500.0,0.00016397,2]
[340602501,1729521039099,-308.9280155,0.00016397,2]
[340602502,1729521039109,-467.09326158,0.00016397,2]
[340602503,1729521039119,-174.66026302,0.00016397,2]
[340602504,1729521039129,-316.17137826,0.00016398,2]
[340602505,1729521039138,-176.43683088,0.00016398,2]
[340602506,1729521039147,-200431.320291,0.00016398,2]
[340602507,1729521039157,-423224.96611,0.00016398,2]
[340602508,1729521039167,-15000.0,0.000164,2]
[340602509,1729521039177,-401.1163379,0.000164,2]
[340602510,1729521039187,-150.112233,0.000164,2]
[340602511,1729521039196,-150.112233,0.000164,2]
[340602512,1729521039205,-80172.5281165,0.00016408,2]
[340602513,1729521039214,-344.929,0.00016417,2]
[340602514,1729521039223,-500.0,0.00016427,2]
[340602515,1729521039233,-19984.80065275,0.00016438,2]
[340602516,1729521039242,-10014.27677069,0.00016438,2]
[340602517,1729521039252,-500.0,0.00016438,2]
[340602518,1729521039261,-500.0,0.00016438,2]
[340602519,1729521039271,-500.0,0.00016438,2]
[340602520,1729521039281,-500.0,0.00016438,2]
[340602521,1729521039291,-500.0,0.00016438,2]
[340602522,1729521039300,-510.88579333,0.00016438,2]
[340602523,1729521039312,-500.0,0.00016438,2]
[340602524,1729521039321,-500.0,0.00016438,2]
[340602525,1729521039330,-501.51459694,0.00016438,2]
[340602526,1729521039339,-500.55522641,0.00016438,2]
[340602527,1729521039348,-501.43484337,0.00016438,2]
[340602528,1729521039357,-500.0,0.00016438,2]
[340602529,1729521039366,-500.0,0.00016438,2]
[340602530,1729521039376,-500.0,0.00016438,2]
[340602531,1729521039385,-1221.75,0.00016438,2]
[340602532,1729521039395,-500.0,0.00016438,2]
[340602533,1729521039404,-500.78134076,0.00016438,2]
[340602534,1729521039414,-155.42304752,0.00016438,2]
[340602535,1729521039425,-500.0,0.00016438,2]
[340602536,1729521039434,-500.0,0.00016438,2]
[340602537,1729521039444,-500.0,0.00016438,2]
[340602538,1729521039453,-500.0,0.00016438,2]
[340602539,1729521039463,-434.94224412,0.00016438,2]
[340602540,1729521039472,-500.0,0.00016438,2]
[340602541,1729521039482,-1433.34,0.00016438,2]
[340602542,1729521039492,-500.0,0.00016438,2]
[340602543,1729521039501,-500.0,0.00016438,2]
[340602544,1729521039511,-500.0,0.00016438,2]
[340602545,1729521039524,-500.0,0.00016438,2]
[340602546,1729521039533,-500.0,0.00016438,2]
[340602547,1729521039544,-500.0,0.00016438,2]
[340602548,1729521039558,-878.19,0.00016438,2]
[340602549,1729521039567,-500.0,0.00016438,2]
[340602550,1729521039577,-505.85788359,0.00016438,2]
[340602551,1729521039585,-370.06861828,0.00016438,2]
[340602552,1729521039597,-500.0,0.00016438,2]
[340602553,1729521039606,-1265.65,0.00016438,2]
[340602554,1729521039616,-500.0,0.00016438,2]
[340602555,1729521039625,-500.0,0.00016438,2]
[340602556,1729521039634,-500.0,0.00016438,2]
[340602557,1729521039643,-500.0,0.00016438,2]
[340602558,1729521039653,-500.0,0.00016438,2]
[340602559,1729521039662,-1618.23,0.00016438,2]
[340602560,1729521039671,-500.0,0.00016438,2]
[340602561,1729521039680,-500.29953849,0.00016438,2]
[340602562,1729521039689,-500.0,0.00016438,2]
[340602563,1729521039699,-669.07,0.00016438,2]
[340602564,1729521039708,-500.0,0.00016438,2]
[340602565,1729521039717,-500.0,0.00016438,2]
[340602567,1729521039726,-500.73707659,0.00016438,2]
[340602568,1729521039735,-500.0,0.00016438,2]
[340602569,1729521039745,-500.0,0.00016438,2]
[340602570,1729521039755,-500.0,0.00016438,2]
[340602572,1729521039764,-937.4,0.00016438,2]
[340602573,1729521039773,-500.0,0.00016438,2]